Cogmind - Beta 15 @@@ ROGUE MODE // 2025.10.17 @ 17:26:28 Player: the Result: Self-destructed Performance ------------- Evolutions (2) 1000 Regions Visited (7) 1400 Robots Destroyed (115) 575 Value Destroyed (2456) 2456 Prototype IDs (9) 180 Alien Tech Used (0) 0 Bonus (195) 195 TOTAL SCORE: 5806 Bonus ------- High Alert Combat Kills 41 Follower Combat Kills 167 Friendly Fire -13 Cogmind --------- Core Integrity 455/550 Matter 131/300 Energy 83/100 System Corruption 0% Temperature Cool (13) Movement Walking (130) Location -8/Materials Parts ------- > --- POWER (1) -------- (None) > --- PROPULSION (4) --- Titanium Leg Titanium Leg Titanium Leg Titanium Leg > --- UTILITY (3) ------ High-capacity Storage Unit Hacking Suite System Shield > --- WEAPON (3) ------- Autogun Autogun Autogun > --- INVENTORY (20) --- Heavy Ion Engine Titanium Leg Cooling System Seismic Detector Core Analyzer Core Analyzer Armor Integrity Analyzer Recoil Stabilizer Actuator Array Makeshift Cloaking Device Medium Armor Plating Medium Armor Plating Advanced Beam Cannon Advanced Beam Cannon Advanced Beam Cannon Rocket Launcher Plasma Cutter Katana Longsword +1 Peak State ------------ > --- POWER ------------ Light Nuclear Core > --- PROPULSION ------- Titanium Leg Titanium Leg Titanium Leg Titanium Leg > --- UTILITY ---------- High-capacity Storage Unit Hacking Suite Makeshift System Shield > --- WEAPON ----------- Autogun Autogun Longsword +1 > --- INVENTORY -------- Heavy Ion Engine Cooling System Seismic Detector Recoil Stabilizer Actuator Array Makeshift Cloaking Device Medium Armor Plating Medium Armor Plating Advanced Beam Cannon Advanced Beam Cannon Advanced Beam Cannon Autogun Rocket Launcher Plasma Cutter Katana [Rating: 38] Favorites ----------- Power Light Nuclear Core Engine Improved Ion Engine Power Core Light Nuclear Core Propulsion Light Treads Treads Light Treads Leg Titanium Leg Utility Seismic Detector Device Seismic Detector Storage High-capacity Storage Unit Processor Advanced Terrain Scan Processor Hackware Hacking Suite Protection Medium Armor Plating Weapon Improved Assault Rifle Energy Gun Small Laser Energy Cannon Particle Cannon Ballistic Gun Improved Assault Rifle Launcher Rocket Launcher Special Weapon Mining Laser Impact Weapon Flail Slashing Weapon Katana Build | -11 -10 -10 -9 -9 -9 -8 -8 ------- Run | Yrd Mat Min Mat Min Exi Min Mat Slots Evolved 4 | . . . 2 . . . 2 Power . | . . . . . . . . Propulsion 2 | . . . 1 . . . 1 Utility 1 | . . . 1 . . . . Weapon 1 | . . . . . . . 1 Parts Attached 89 | 7 23 . 40 1 3 7 8 Power 10 | 1 3 . 5 . . . 1 Engine 8 | 1 3 . 4 . . . . Core 2 | . . . 1 . . . 1 Reactor . | . . . . . . . . Propulsion 30 | 2 8 . 17 . . 2 1 Treads 19 | . 7 . 12 . . . . Leg 11 | 2 1 . 5 . . 2 1 Wheel . | . . . . . . . . Hover . | . . . . . . . . Flight . | . . . . . . . . Utility 19 | 2 4 . 5 . 2 1 5 Device 8 | 1 3 . 1 . 1 1 1 Storage 4 | 1 1 . 1 . 1 . . Processor 1 | . . . . . . . 1 Hackware 3 | . . . . . . . 3 Protection 3 | . . . 3 . . . . Artifact . | . . . . . . . . Weapon 30 | 2 8 . 13 1 1 4 1 Energy Gun 3 | 1 1 . 1 . . . . Energy Cannon 7 | . 4 . 1 . . 2 . Ballistic Gun 12 | 1 . . 7 1 . 2 1 Ballistic Cannon . | . . . . . . . . Launcher 3 | . 2 . 1 . . . . Special Weapon 2 | . 1 . 1 . . . . Impact Weapon 1 | . . . 1 . . . . Slashing Weapon 2 | . . . 1 . 1 . . Piercing Weapon . | . . . . . . . . Special Melee Weapon . | . . . . . . . . Unidentified Prototypes 4 | . . . 3 . 1 . . Parts Lost 3 | . 1 . . . . . 2 Power 2 | . . . . . . . 2 Propulsion . | . . . . . . . . Utility 1 | . 1 . . . . . . Weapon . | . . . . . . . . Highest Loss Streak 1 | . 1 . . . . . 1 To Critical Strikes . | . . . . . . . . Average Backups 17 | 2 12 14 19 19 20 19 15 Power . | . . 1 . 1 1 1 . Propulsion 3 | 1 3 3 3 4 4 3 . Utility 4 | . 1 2 4 5 5 7 7 Weapon 7 | . 5 6 9 8 8 7 6 Tool/Special . | . . . . . . . . Unused Backups 25 | . 3 . 12 1 1 1 7 Power . | . . . . . . . . Propulsion 2 | . 2 . . . . . . Utility 8 | . . . 1 1 . 1 5 Weapon 13 | . 1 . 10 . 1 . 1 Tool/Special 2 | . . . 1 . . . 1 Average Slot Usage (%) 99 | . 99 100 99 100 91 99 98 Engine 6 | . 14 14 6 . . . 1 Core 5 | . . . 4 11 11 11 7 Treads 29 | . 25 28 32 33 33 31 . Leg 2 | . 2 . . . . 1 36 Device 11 | . 13 14 11 11 11 11 1 Storage 11 | . 14 14 11 11 11 11 9 Protection 7 | . . . 10 11 11 11 1 Energy Cannon 3 | . 19 . . . . . . Ballistic Gun 10 | . 2 . 19 21 . . 26 Launcher 3 | . 3 28 . . . . . Slashing Weapon 4 | . . . 2 . 13 21 . Peak Build Rating 38 | 7 12 12 24 21 29 31 38 Average Rating 18 | 4 10 12 19 20 22 26 32 On Entrance 15 | . 7 12 12 19 21 26 27 Naked Turns . | . . . . . . . . Heaviest Build 65 | 12 36 36 65 59 59 59 62 Greatest Support 68 | 20 40 40 60 60 60 60 68 Greatest Overweight (x) 3 | . 1 . 3 . . 2 . Average Overweight (x) . | . . . . . . . . Largest Inventory Capacity 20 | 8 15 15 20 20 20 20 20 Average Capacity 17 | 5 13 15 19 20 20 20 20 Most Carried 20 | 5 15 15 20 20 20 20 20 Average Carried 17 | 2 12 14 19 19 19 19 15 Final Capacity 20 | 8 15 15 20 20 20 20 20 Final Carried 20 | 5 15 15 20 20 20 17 19 Class Distribution -------------------- 70% | Mutant 25% | Scavenger-Mutant 3% | Hacker-Gunner Dominant Class ---------------- Mutant | -10/Materials Mutant | -10/Mines Mutant | -9/Materials Mutant | -9/Mines Mutant | -9/Exiles Scavenger-Mutant | -8/Mines Hacker-Gunner | -8/Materials Resources | -11 -10 -10 -9 -9 -9 -8 -8 ----------- Run | Yrd Mat Min Mat Min Exi Min Mat Matter Collected 2853 | 321 467 145 1244 118 42 219 297 Remotely 52 | . 52 . . . . . . Salvage Created 4184 | 234 925 128 1795 230 176 311 385 Parts 259 | 29 53 6 113 13 3 12 30 Haulers Intercepted 8 | . 2 . 6 . . . . Recyclers Shooed 5 | 1 1 . 1 2 . . . Parts Field Recycled . | . . . . . . . . Retrieved Matter . | . . . . . . . . Parts Self-Destructed . | . . . . . . . . Prevented . | . . . . . . . . Kills | -11 -10 -10 -9 -9 -9 -8 -8 ------- Run | Yrd Mat Min Mat Min Exi Min Mat Combat Hostiles Destroyed 63 | . 18 3 26 3 . 2 11 Melee 5 | . . . 2 . . 2 1 Guns 43 | . 7 . 24 2 . . 10 Cannons 11 | . 11 . . . . . . AOE 4 | . . 3 . 1 . . . Classes Destroyed 13 | 3 5 1 3 . . . 1 Worker 13 | 1 4 2 2 . . 4 . Builder 1 | . . . . . . . 1 Tunneler 11 | 9 . . 1 . . 1 . Hauler 8 | . 2 . 6 . . . . Recycler 9 | 1 1 1 3 2 . 1 . Mechanic 1 | . . . 1 . . . . Operator 4 | . 2 . 1 . . . 1 Watcher 5 | . 3 . 2 . . . . Swarmer 15 | . 6 . 3 . . . 6 Grunt 35 | . 12 2 13 3 . 2 3 Duelist 1 | . . . 1 . . . . Sentry 11 | . . . 9 . . . 2 Demolisher 1 | . . 1 . . . . . Best Kill Streak 7 | 6 5 2 7 3 . 2 3 Combat Bots Only 5 | . 5 2 4 3 . 1 3 Max Kills in Single Turn 2 | 1 1 1 1 2 . 1 1 Gunslinging 1 | . . . . 1 . . . Exploded 1 | . . 1 . 1 . . . Melee 1 | . . . 1 . . 1 1 Uniques/NPCs Destroyed . | . . . . . . . . Combat | -11 -10 -10 -9 -9 -9 -8 -8 -------- Run | Yrd Mat Min Mat Min Exi Min Mat Hostile Shots Fired 248 | . 90 5 80 10 . 5 58 Missed 68 | . 20 1 26 3 . . 18 Hits 180 | . 70 4 54 7 . 5 40 Projectile 180 | . 70 4 54 7 . 5 40 AOE 1 | . . 1 . . . . . Critical Strikes 7 | . . . 4 . . . 3 Damage Taken 2379 | . 796 108 634 93 . 90 658 Core 355 | . 170 . 59 12 . 19 95 Absorbed by Shields 124 | . . . 124 . . . . Regen/Repaired (Parts) 123 | . 36 . 87 . . . . Core Remaining (%) 69 | 100 . 32 . . . 77 . Volleys Fired 212 | 20 61 6 84 10 . . 31 Largest 3 | 2 2 2 2 2 . . 3 Hottest 136 | 60 136 66 46 46 . . 69 Shots Fired 449 | 40 124 10 166 20 . . 89 Gun 353 | 40 39 . 166 19 . . 89 Cannon 82 | . 82 . . . . . . Launcher 13 | . 2 10 . 1 . . . Special 1 | . 1 . . . . . . Kinetic 312 | 20 18 . 166 19 . . 89 Thermal 124 | 20 104 . . . . . . Explosive 13 | . 2 10 . 1 . . . Electromagnetic . | . . . . . . . . Robot Hit Streak 26 | 7 8 2 26 10 . . 6 Robot Miss Streak 4 | 2 3 2 3 2 . . 4 Penetration Max . | . . . . . . . . Secondary Targets 10 | . 3 . 2 1 . . 4 Max Gunslinging Chain 1 | . 1 . 1 1 . . 1 Shots Hit Robots 310 | 22 70 2 134 12 11 10 49 Core Hits 156 | 12 37 14 59 6 3 5 20 Critical Kills . | . . . . . . . . Critical Parts Destroyed 3 | 1 1 . 1 . . . . Critical Strikes 4 | 1 2 . 1 . . . . Burn 1 | . 1 . . . . . . Destroy 3 | 1 1 . 1 . . . . Melee Attacks 46 | . . . 14 1 11 16 4 Impact . | . . . . . . . . Slashing 46 | . . . 14 1 11 16 4 Piercing . | . . . . . . . . Sneak Attacks 10 | . . . 3 . . 6 1 Combat Hostiles . | . . . . . . . . Follow-up Attacks . | . . . . . . . . Damage Inflicted 7412 | 273 1532 329 2304 282 1040 755 897 Guns 3496 | 273 376 . 1929 185 . . 733 Cannons 943 | . 943 . . . . . . Explosions 560 | . 158 305 . 97 . . . Melee 2306 | . . . 347 . 1040 755 164 Ramming 107 | . 55 24 28 . . . . Kinetic 3179 | 140 192 . 1929 185 . . 733 Thermal 1260 | 133 1127 . . . . . . Explosive 560 | . 158 305 . 97 . . . Electromagnetic . | . . . . . . . . Impact . | . . . . . . . . Slashing 2306 | . . . 347 . 1040 755 164 Piercing . | . . . . . . . . Highest Corruption 7 | . 7 7 3 3 3 3 . Average Corruption 4 | . 5 7 2 3 3 3 . Corruption Purged . | . . . . . . . . Corruption Blocked . | . . . . . . . . Effects 168 | . 40 28 47 18 13 22 . Message Errors 37 | . 3 7 13 6 1 7 . Matter Fused 49 | . 12 5 13 2 7 10 . Heat Flow Errors 20 | . 7 4 4 4 1 . . Energy Discharges 25 | . 5 8 6 2 1 3 . Data Loss (minor) 12 | . 2 3 3 2 . 2 . Data Loss (major) 11 | . 6 . 3 . 2 . . Misfires 8 | . 4 . 3 1 . . . Alerts 4 | . 1 . 1 1 1 . . Weapon Failures 2 | . . 1 1 . . . . Overload Shots . | . . . . . . . . Overflow Damage 582 | . 29 . 10 . 247 186 110 Projectiles 5 | . 5 . . . . . . Explosions 24 | . 24 . . . . . . Melee 553 | . . . 10 . 247 186 110 Knockbacks . | . . . . . . . . Impact . | . . . . . . . . Kinetic . | . . . . . . . . Secondary . | . . . . . . . . Self-Inflicted Damage 36 | . . 36 . . . . . Shots 1 | . . 1 . . . . . Rammed 13 | . 6 4 3 . . . . Targets Rammed 17 | . 7 6 4 . . . . Kicked . | . . . . . . . . Crushed 4 | . 1 2 1 . . . . Highest Temperature 484 | . 484 264 243 273 142 . 132 Average Temperature 88 | . 105 84 56 110 78 . 37 Received Heat Transfer 930 | . 345 24 276 51 . 45 189 Effects 8 | . 7 . . 1 . . . Shutdowns 1 | . 1 . . . . . . Energy Bleed 2 | . 2 . . . . . . Interference 4 | . 3 . . 1 . . . Short Circuit 1 | . 1 . . . . . . Siege Activations . | . . . . . . . . Martial Activations . | . . . . . . . . Shielding Activations . | . . . . . . . . Robots Disrupted . | . . . . . . . . Combat Hostiles . | . . . . . . . . Robots Corrupted . | . . . . . . . . Combat Hostiles . | . . . . . . . . Parts Fried . | . . . . . . . . Impact Corruptions . | . . . . . . . . Robots Melted . | . . . . . . . . Combat Hostiles . | . . . . . . . . Parts Melted 4 | . 4 . . . . . . Heat Transferred 2474 | 300 2174 . . . . . . Parts Sabotaged . | . . . . . . . . Parts Stolen . | . . . . . . . . Parts Stripped . | . . . . . . . . Power Chain Reactions . | . . . . . . . . Alert | -11 -10 -10 -9 -9 -9 -8 -8 ------- Run | Yrd Mat Min Mat Min Exi Min Mat Maximum Alert Level 2 | . . . 2 1 . . . Low Security (%) 83 | 100 100 100 53 89 . 100 100 Level 1 7 | . . . 18 10 . . . Level 2 9 | . . . 28 . . . . Level 3 . | . . . . . . . . Level 4 . | . . . . . . . . Level 5 . | . . . . . . . . High Security . | . . . . . . . . Max Security . | . . . . . . . . Peak Influence 457 | 25 181 88 457 253 . 54 186 Initial 173 | . . 48 . 173 . . 3 Average 98 | 3 68 20 212 56 . 2 98 Influence Increases 2383 | 55 607 192 1005 91 10 122 301 Destroy 0b10 Robot/C 1360 | . 360 80 580 60 . 60 220 Destroy 0b10 Robot/NC 275 | 55 60 15 85 10 10 30 10 Destroy Leader 348 | . 80 20 178 10 . 10 50 Allied During Kill 53 | . . 18 31 . . 4 . Successful Hack 53 | . 18 . 32 . . . 3 Disable Machine 60 | . 45 . 15 . . . . Destroy Structure 129 | . 44 59 9 11 . 3 3 Partial Spotted 30 | . . . 30 . . . . Lose Combat Pursuer 75 | . . . 45 . . 15 15 Influence Decreases 2288 | 55 483 316 559 537 10 112 216 Entered New Map 356 | . . 76 . 273 . . 7 Time Decay 1818 | 55 473 240 516 264 10 71 189 Lost Part 30 | . 10 . . . . . 20 Lost Ally 84 | . . . 43 . . 41 . Squads Dispatched 5 | . 2 . 1 . . . 2 Investigation 1 | . 1 . . . . . . Extermination . | . . . . . . . . Reinforcement 4 | . 1 . 1 . . . 2 Assault . | . . . . . . . . Garrison . | . . . . . . . . Intercept . | . . . . . . . . Searches Triggered . | . . . . . . . . Construction Impeded . | . . . . . . . . Haulers Reinforced . | . . . . . . . . Active Scanning Responses . | . . . . . . . . Cargo Convoy Interrupts . | . . . . . . . . Stealth | -11 -10 -10 -9 -9 -9 -8 -8 --------- Run | Yrd Mat Min Mat Min Exi Min Mat Distress Signals 8 | . . . 4 . . . 4 Communications Jammed . | . . . . . . . . Distress Signals . | . . . . . . . . Times Spotted 102 | . 30 3 41 2 . 4 22 Peak Tracking Total 7 | . 6 2 5 2 . 3 7 Tactical Retreats 4 | . . . 2 . . 1 1 Traps | -11 -10 -10 -9 -9 -9 -8 -8 ------- Run | Yrd Mat Min Mat Min Exi Min Mat Traps Triggered 9 | . 6 . 3 . . . . Indirectly . | . . . . . . . . Trap Hack Attempts . | . . . . . . . . Triggered . | . . . . . . . . Disarmed . | . . . . . . . . Reprogrammed . | . . . . . . . . Reused . | . . . . . . . . Traps Extracted . | . . . . . . . . Installed . | . . . . . . . . Triggered . | . . . . . . . . Objects Rigged 3 | . 3 . . . . . . Exploded 1 | . 1 . . . . . . Machines | -11 -10 -10 -9 -9 -9 -8 -8 ---------- Run | Yrd Mat Min Mat Min Exi Min Mat Machines Disabled 4 | . 3 . 1 . . . . Max in Single Turn 1 | . 1 . . . . . . Machines Repaired . | . . . . . . . . Machines Dismantled . | . . . . . . . . Machines Sabotaged . | . . . . . . . . Overloaded Fab Kills . | . . . . . . . . Hacking | -11 -10 -10 -9 -9 -9 -8 -8 --------- Run | Yrd Mat Min Mat Min Exi Min Mat Machines Accessed 28 | . 10 . 14 . 1 . 3 Terminals 19 | . 7 . 10 . . . 2 Fabricators . | . . . . . . . . Repair Stations 2 | . 1 . 1 . . . . Recycling Units 4 | . 2 . 1 . . . 1 Scanalyzers 2 | . . . 2 . . . . Garrison Access . | . . . . . . . . Total Hacks 93 | . 30 . 47 . 1 . 15 Successful 46 | . 11 . 26 . 1 . 8 Failed 46 | . 18 . 21 . . . 7 Catastrophic 13 | . 5 . 7 . . . 1 Database Lockouts 1 | . 1 . . . . . . Manual 56 | . 22 . 22 . 1 . 11 Terminals 66 | . 23 . 29 . . . 14 Fabricators . | . . . . . . . . Repair Stations 7 | . 2 . 5 . . . . Recycling Units 9 | . 5 . 3 . . . 1 Scanalyzers 10 | . . . 10 . . . . Garrison Access . | . . . . . . . . Terminal Hacks 16 | . 5 . 4 . 1 . 6 Record 1 | . . . . . 1 . . Part Schematic 2 | . . . . . . . 2 Robot Analysis 4 | . 2 . 2 . . . . Prototype ID Bank 3 | . 2 . 1 . . . . Branch Access Points 1 | . . . . . . . 1 Terminal Index 1 | . . . . . . . 1 Locate Traps 1 | . 1 . . . . . . Registered Components 2 | . . . 1 . . . 1 Zone Layout 1 | . . . . . . . 1 Fabricator Hacks . | . . . . . . . . Repair Station Hacks 6 | . 2 . 4 . . . . Scan Component 3 | . 1 . 2 . . . . Repair 3 | . 1 . 2 . . . . Recycling Unit Hacks 4 | . 3 . 1 . . . . Retrieve Components 4 | . 3 . 1 . . . . Scanalyzer 10 | . . . 10 . . . . Insert Component 4 | . . . 4 . . . . Analyze 6 | . . . 6 . . . . Garrison Access Hacks . | . . . . . . . . Unauthorized Hacks 9 | . 1 . 6 . . . 2 Terminals 8 | . 1 . 5 . . . 2 Assimilate 1 | . . . 1 . . . . Botnet 4 | . . . 3 . . . 1 Detonate 1 | . 1 . . . . . . Operators 2 | . . . 1 . . . 1 Fabricators . | . . . . . . . . Repair Stations . | . . . . . . . . Recycling Units 1 | . . . 1 . . . . Mask 1 | . . . 1 . . . . Scanalyzers . | . . . . . . . . Garrison Access . | . . . . . . . . Data Cores Recovered . | . . . . . . . . Used . | . . . . . . . . Hacking Detections 24 | . 8 . 13 . . . 3 Full Trace Events 1 | . . . 1 . . . . Feedback Events . | . . . . . . . . Feedback Blocked . | . . . . . . . . Robot Schematics Acquired . | . . . . . . . . Robots Built . | . . . . . . . . Authchips . | . . . . . . . . Time . | . . . . . . . . Total Robot Build Rating . | . . . . . . . . Part Schematics Acquired 6 | . . . 4 . . . 2 Parts Built . | . . . . . . . . Authchips . | . . . . . . . . Time . | . . . . . . . . Total Part Build Rating . | . . . . . . . . Parts Repaired 3 | . 1 . 2 . . . . Time 96 | . 26 . 70 . . . . Parts Recycled . | . . . . . . . . Recycled Matter . | . . . . . . . . Retrieved Matter . | . . . . . . . . Retrieved Components 22 | . 13 . 9 . . . . Parts Scanalyzed 4 | . . . 4 . . . . Part Schematics Acquired 4 | . . . 4 . . . . Parts Damaged . | . . . . . . . . Bothacking | -11 -10 -10 -9 -9 -9 -8 -8 ------------ Run | Yrd Mat Min Mat Min Exi Min Mat Used RIF Installer . | . . . . . . . . Robots Hacked . | . . . . . . . . Non-combat . | . . . . . . . . Combat . | . . . . . . . . Robot Hacks Applied . | . . . . . . . . Relay Couplers Released . | . . . . . . . . Fabnet Peak Effective % . | . . . . . . . . Robots Rewired 3 | . . . . . 3 . . Allies Hacked . | . . . . . . . . Hacks Repelled . | . . . . . . . . Allies | -11 -10 -10 -9 -9 -9 -8 -8 -------- Run | Yrd Mat Min Mat Min Exi Min Mat Total Allies 10 | . . 5 1 1 3 . . Largest Group 5 | . . 5 5 2 4 4 1 Highest-Rated Group 87 | . . 87 87 41 47 47 10 Highest-Rated Ally 31 | . . 31 31 31 21 21 10 Total Orders 7 | . . . . 6 . 1 . STAY 4 | . . . . 3 . 1 . FOLLOW 3 | . . . . 3 . . . Ally Attacks 44 | . . 2 33 . . 9 . Total Damage 489 | . . 22 324 . . 143 . Kills 6 | . . 1 4 . . 1 . Allies Corrupted . | . . . . . . . . Allies Melted . | . . . . . . . . Intel | -11 -10 -10 -9 -9 -9 -8 -8 ------- Run | Yrd Mat Min Mat Min Exi Min Mat Active Infowar (turns) 7704 | 54 993 1014 2368 1164 806 1305 . Seismic 7704 | 54 993 1014 2368 1164 806 1305 . Cloaking 2 | . . . . . 2 . . Robot Analysis Total 4 | . 2 . 2 . . . . Derelict Logs Recovered 4 | . . 1 . 3 . . . Drone Launches . | . . . . . . . . Drone Recoveries . | . . . . . . . . Exploration | -11 -10 -10 -9 -9 -9 -8 -8 ------------- Run | Yrd Mat Min Mat Min Exi Min Mat Turns Passed 9871 | 275 1866 1014 2953 1184 806 1352 421 Spaces Moved 5092 | 126 976 612 1342 680 465 663 228 Core 6 | 6 . . . . . . . Treads 4644 | . 910 612 1338 680 465 639 . Legs 442 | 120 66 . 4 . . 24 228 Wheels . | . . . . . . . . Hover . | . . . . . . . . Flight . | . . . . . . . . Fastest Speed 50 | 50 120 160 160 160 160 160 130 Average Speed 163 | 116 157 160 176 160 160 178 130 Slowest Speed 340 | 120 240 160 340 160 160 320 130 Overloaded Moves . | . . . . . . . . Propulsion Burnouts . | . . . . . . . . Robots Hopped . | . . . . . . . . Potential Cave-ins . | . . . . . . . . Cave-ins Triggered . | . . . . . . . . Exploration Rate (%) 73 | 3 95 96 93 99 89 83 33 Regions Visited 7 Branch Regions 4 Pre-discovered Areas 1 | . . . . . 1 . . Known Exits Taken 2 | . . . 1 . 1 . . Unknown Exits Taken 5 | 1 1 1 . 1 . 1 . Scrap Searched 4 | . . 1 . 2 . 1 . Spaces Dug 40 | . 1 28 6 1 . 3 1 Terrain Destroyed 166 | . 51 94 6 11 . 3 1 Melee 11 | . . . 6 1 . 3 1 Projectile 1 | . 1 . . . . . . AOE 154 | . 50 94 . 10 . . . Terrain Rammed . | . . . . . . . . Walls Destroyed . | . . . . . . . . Machines Disabled . | . . . . . . . . Actions | -11 -10 -10 -9 -9 -9 -8 -8 --------- Run | Yrd Mat Min Mat Min Exi Min Mat Total 6146 | 210 1180 633 1736 756 515 819 297 Wait 464 | 53 59 8 146 59 . 125 14 Move 5085 | 125 975 611 1341 679 464 662 228 Hop . | . . . . . . . . Pick Up 78 | 5 24 1 38 2 2 2 4 Fast Attach 18 | 7 7 . 1 . 1 . 2 Attach 21 | . 4 . 6 . 1 5 5 Detach 5 | . . . 2 . . 2 1 Swap 96 | . 22 . 57 3 4 5 5 Drop 78 | . 21 1 43 2 3 5 3 Fire 212 | 20 61 6 84 10 . . 31 Melee 43 | . . . 14 1 11 13 4 Ram . | . . . . . . . . Kick . | . . . . . . . . Crush 17 | . 7 6 4 . . . . Escape Stasis . | . . . . . . . . Rewire 29 | . . . . . 29 . . Trap . | . . . . . . . . Miscellaneous . | . . . . . . . . Route ------- -11/Scrapyard -10/Materials (discovered 5 exits: *Mat x3 / [*Min x2]) -10/Mines (discovered 2 exits: *Mat x2) -9/Materials (discovered 4 exits: *Mat x3 / *Min) -9/Mines (discovered 4 exits: *Mat x2 / *Exi / [*Zio]) -9/Exiles -8/Mines (discovered 2 exits: *Mat x2) -8/Materials History --------- Turn | Location | Event 6 | -11/Scrapyard | Discovered new exit (range 14) 276 | -11/Scrapyard | Entered Materials 315 | -10/Materials | Build established: Mutant 432 | -10/Materials | Discovered new exit (range 14) 575 | -10/Materials | Core integrity fell below 50% 803 | -10/Materials | Central database locked down 1081 | -10/Materials | Discovered new exit (range 5) 1157 | -10/Materials | Discovered new exit (range 6) 1303 | -10/Materials | Discovered new exit (range 8) 1382 | -10/Materials | Discovered new exit (range 16) 1428 | -10/Materials | Repaired Lgt. Treads 2142 | -10/Materials | Entered Mines 2204 | -10/Mines | Assembled infested the area 2610 | -10/Mines | Assisted by bots powering up and referring to "LRC-V3" 2800 | -10/Mines | Discovered new exit (range 12) 2920 | -10/Mines | Discovered new exit (range 11) 3156 | -10/Mines | Entered Materials 3156 | -9/Materials | Accompanied by 5 allies 3156 | -9/Materials | Evolved 2 slots: Propulsion x1, Utility x1 3157 | -9/Materials | Identified exit to Mines 3161 | -9/Materials | Led the pair of lost Derelicts to an unsafe place 3681 | -9/Materials | Lost 3 allies 4304 | -9/Materials | Discovered new exit (range 16) 5394 | -9/Materials | Repaired Katana 5427 | -9/Materials | Repaired Med. Armor Plating 5447 | -9/Materials | Discovered new exit (range 12) 5546 | -9/Materials | Build established: Scavenger-Mutant 5842 | -9/Materials | Discovered new exit (range 3) 6109 | -9/Materials | Entered Mines 6109 | -9/Mines | Accompanied by 1 ally 6207 | -9/Mines | Discovered new exit (range 13) 6208 | -9/Mines | Learned 2 Materials zone layouts 6218 | -9/Mines | Found DCF Scrap (12 items) 6255 | -9/Mines | A Derelict revealed a hidden shortcut to a safe place 6371 | -9/Mines | Discovered new exit (range 6) 6563 | -9/Mines | Received a Mining Laser from a helpful Derelict 6593 | -9/Mines | Deemed a non-threat by the Exiles lab entrance 6641 | -9/Mines | Discovered new exit (range 5) 6699 | -9/Mines | Build established: Mutant 6807 | -9/Mines | Learned Materials terminal intel 6817 | -9/Mines | Found a Scrap Suit stashed away for nefarious purposes 7293 | -9/Mines | Entered Exiles 7293 | -9/Exiles | Found Exiles lab destroyed 7293 | -9/Exiles | Accompanied by 1 ally 7294 | -9/Exiles | Identified exit to Mines 7453 | -9/Exiles | Opened EX-Vault 7459 | -9/Exiles | Found Prototype Slashing Weapon 7459 | -9/Exiles | Identified Longsword +1 7632 | -9/Exiles | Learned location of Zion (-7) 8086 | -9/Exiles | Build established: Scavenger-Mutant 8099 | -9/Exiles | Entered Mines 8099 | -8/Mines | Accompanied by 4 allies 8144 | -8/Mines | Discovered new exit (range 11) 8680 | -8/Mines | Discovered new exit (range 10) 9451 | -8/Mines | Entered Materials 9451 | -8/Materials | Accompanied by 1 ally 9451 | -8/Materials | Evolved 2 slots: Propulsion x1, Weapon x1 9453 | -8/Materials | Loaded intel: 12 terminal locations 9872 | -8/Materials | Self-destructed Last Messages --------------- 09730_ Acquired 60 matter. 09748_ Acquired System Shield. 09795_ Discarded Mak. System Shield. 09795_ Acquired Unknown Processor. 09795_ Identified Adv. Terrain Scan Processor. 09797_ Discarded Adv. Terrain Scan Processor. 09799_ Acquired Armor Integrity Analyzer. 09804_ Acquired Core Analyzer. 09823_ Connecting with Terminal... 09848_ U-05 Engineer destroyed. 09858_ W-25 Informer sends out distress signal. 09858_ O-24 Administrator: "IFF HANDSHAKE FAILED. SECURING TERMINAL." 09861_ Destroyed Imp. Hover Unit. 09862_ ALERT: Hostiles spotted, dispatching reinforcements to Terminal M002. 09865_ Lgt. Nuclear Core destroyed. 09866_ Knocked back. 09871_ Critical hit (Burn: +37). 09871_ T-07 Excavator is excavating. Map ----- +----------------------------------------------------+ | ## #??????????# #?#######?????????? | | ????? #??????????# #?????????????????? | | ?????#""" #??????????# #?????????????????? | | ??????#""" #??????????# #?????????????????? | | ???????#""" ########???#!= #?????????????????? | | ???????#""" #!!!!!!#???#%! #?????????????????? | | ???????# #! ! #???#*| ###########???????? | | ???????? # #???# # #???????? | | ????????######### ##### # #???????? | | ????????????# # #???????? | | ????????????# # """ """ #???????? | | ????????????# # """ """ #???????? | | ????????????# ###+##### ### """ """ #???????? | | ????????????# # ## #?# #???????? | | ????????????# # ## #?# #???????? | | ?????????=??# # ! ## #######+############# | | ????????????# ?# ## # | | ????????????# ?# "T" ## # """ | | ????????????# ?# !## # "Y" | | ????????????# ?#########o ########### + | | ????????????# ??????????# # #??# # | | ????????????# ??????????# # #??# # | | ????????????# ######### % + #??# ####+## | | ????????????# # """ #??# #??# #? | | ??????????u # """ #??# #??# #? | | ??????H???? "" ! [@[ %# """ #??# #??# #? | | ?????????????? "" [ [[[ ########### #??# #? | | ?????????????? "T [[[ # # #??# #? | | ?????????????? "" """ # """ """# #??# #? | | ???????????????"" """ +???????????????????? | | ??????????????? """ #???????????????????? | | ?????????""??? ??? w #???????????????????? | | ?????????""??????? #???????????????????? | | ?????????T"???????###"T"## #???????????????????? | | ?????????""?????????#"""?# #???????????????????? | | ?????????""?????????####?#gg #???????????????""??? | | ?????????????????????????? g#???????????????"T??? | | ?????????????????????????? ???????????????""??? | | ?????????????????????????? #???????????????????? | | ?????????????????????????? #???????????????????? | | ??????????????????????????#t?????????????????????? | | ?????????????????????????????????????????????????? | | ?????????????????????????????????????????????????? | | ?????????????????????????????????????????????????? | | ?????????????????????????????????????????????????? | | ?????????????????????????????????????????????????? | | ?????????????????????????????????????????????????? | | ??T??????????????????????????????????????????????? | | ?????????????????????????????????????????????????? | | ?????????????????????????????????????????????????? | +----------------------------------------------------+ Best States ------------- Heat Dissipation 35 Energy Generation 14 Energy Capacity 280 Matter Stores 300 Matter Capacity 300 Sight Range 16 Terrain Scan Density 10 Armor Coverage 225 Evasion (%) 55 Recoil Reduction 4 Offensive Hacking 10 Defensive Hacking 11 Item Schematics ----------------- Med. Armor Plating | -9/Materials | Scanalyzed Katana | -9/Materials | Scanalyzed Titanium Leg | -9/Materials | Scanalyzed Hardlight Generator | -9/Materials | Scanalyzed Blade Saw | -8/Materials | Hacked Lgt. Nuclear Core | -8/Materials | Hacked Robot Schematics ------------------ None Fabricated ------------ Nothing Repaired ---------- Lgt. Treads | 74% | -10/Materials Katana | 60% | -9/Materials Med. Armor Plating | 44% | -9/Materials Alien Tech Used ----------------- None Achievements -------------- None Challenges ------------ None Game ------ Seed CompositeThermalHammer Manual? 0 Play Time 01:03:14 Cumulative 358.7 hours Start 2025.10.17 @ 16:19:11 End 2025.10.17 @ 17:26:28 Sessions 1 Manual Loads 0 Difficulty Rogue Special Mode None Game No. 240 Rogue 240 Adventurer 0 Explorer 0 Win Type - Total 4 Types 3/0/1/0/0/0/0/0/0/0 Lore% 77 Gallery% 78 Achievement% 69 Wizard Run 0 Options --------- Layout 1 ASCII 0 Keyboard 0 Movement Numpad Keybinds 0 Fullscreen 1 Font 24/Smallcaps Map View 50x40 Zoom Use 0% Tactical HUD 1 Map Filters NONE Filters NONE Steam 1 RUN: e34a9de1-e60f-414f-8f52-d39d22bf9be7